bitfinex/quotes_ETHUSD_20250110
["timestamp","ask_amount","ask_price","bid_price","bid_amount"]
[1736524891898,6.65625,3242.8,3242.7,0.005]
[1736524892613,3.0225,3242.8,3242.7,0.005]
[1736524892814,6.10625,3242.8,3242.7,0.005]
[1736524893022,6.65625,3242.8,3242.7,0.005]
[1736524893238,10.70027087,3242.8,3242.7,0.005]
[1736524893399,10.70027087,3242.8,3242.7,1e-05]
[1736524893734,3.08442,3242.1,3242.0,0.1685993]
[1736524893937,6.65692,3242.1,3242.0,0.1685993]
[1736524894318,6.65692,3242.1,3242.0,9.3e-06]
[1736524894319,10.70094087,3242.1,3242.0,9.3e-06]
[1736524894523,10.70094087,3242.1,3241.5,0.09510377]
[1736524894524,3.09239,3241.6,3241.5,0.09510377]
[1736524894716,3.0225,3241.6,3241.5,0.09510377]
[1736524895451,0.0075,3241.6,3241.5,0.09510377]
[1736524895638,0.0225,3242.0,3241.5,0.09510377]
[1736524896317,0.0225,3241.7,3241.5,0.09510377]
[1736524896521,6.10739,3241.6,3241.5,0.09510377]
[1736524896724,6.65739,3241.6,3241.5,0.09510377]
[1736524896901,3.0225,3241.6,3241.5,0.09510377]
[1736524897103,3.08431,3242.3,3241.5,0.09510377]
[1736524897436,3.08413,3242.4,3241.5,0.09510377]
[1736524897617,0.0225,3242.3,3241.5,0.09510377]
[1736524897824,0.015,3242.3,3241.5,3.21086301]
[1736524898064,0.34,3242.9,3241.7,0.7674]
[1736524898266,0.34,3243.6,3241.8,0.03084294]
[1736524898444,3.08276,3243.9,3242.5,0.765]
[1736524898628,0.95052852,3244.1,3242.5,0.765]
[1736524898834,0.015,3243.4,3242.5,0.765]
[1736524899137,0.0075,3243.3,3242.5,0.765]
[1736524899440,0.0075,3243.0,3242.5,0.765]
[1736524899643,0.015,3243.0,3242.5,0.765]
[1736524899849,0.0075,3242.9,3241.8,0.7666]
[1736524900166,0.0075,3242.9,3241.9,0.41597657]
[1736524900383,3.09857,3243.0,3241.9,0.41597657]
[1736524900384,0.015,3243.0,3242.0,0.8098]
[1736524900586,3.08286,3243.8,3242.5,0.8098]
[1736524900880,3.0829,3243.7,3242.6,0.03083682]
[1736524901062,0.015,3243.6,3242.6,0.03083682]
[1736524901262,0.0075,3243.4,3242.5,3.89383]
[1736524901467,0.015,3243.2,3242.5,0.8098]
[1736524901662,0.0075,3243.1,3242.5,0.8098]
[1736524902066,0.0075,3243.0,3242.5,0.8098]
[1736524903047,0.39932803,3245.5,3241.5,0.09510377]
[1736524903048,0.0075,3242.7,3241.8,0.8318]
[1736524903560,3.0225,3242.1,3241.5,0.09510377]
[1736524903762,0.0225,3242.1,3241.5,0.09510377]
[1736524904063,6.08404,3242.5,3241.6,0.03964788]
[1736524904272,0.0225,3242.2,3241.6,0.03964788]
[1736524904449,0.0225,3242.4,3241.6,0.03964788]
[1736524904450,3.0,3242.3,3241.6,0.03964788]
[1736524904651,0.34,3242.9,3241.7,0.03084768]
[1736524904988,0.0225,3242.1,3241.7,0.03955196]
[1736524905283,0.0225,3242.1,3241.5,0.09510377]
[1736524905284,0.015,3242.1,3241.5,0.09510377]
[1736524905430,0.0075,3242.0,3241.8,0.03626226]
[1736524905699,0.0075,3242.0,3241.5,0.09510377]
[1736524905905,0.0075,3242.0,3241.9,0.03945778]
[1736524906096,0.0075,3242.0,3241.5,0.09510377]
[1736524906301,0.015,3241.9,3241.5,0.09510377]
[1736524906523,3.0,3242.5,3241.6,0.03650876]
[1736524906701,0.63085887,3243.0,3241.7,0.753]
[1736524906918,3.0,3242.5,3241.7,0.79272668]
[1736524907204,3.71449887,3243.0,3241.7,0.79272668]
[1736524907205,0.0225,3242.4,3241.7,0.79272668]
[1736524907435,0.0075,3241.9,3241.7,0.03972668]
[1736524907640,0.0075,3241.6,3241.5,0.09510377]
[1736524908305,0.0225,3241.6,3241.5,0.09510377]
[1736524908507,3.10739,3241.6,3241.5,0.09510377]
[1736524908957,0.0225,3241.6,3241.5,0.09510377]
[1736524909202,0.0075,3241.6,3241.5,0.09510377]
[1736524910509,6.10739,3241.6,3241.5,0.09510377]
[1736524910741,6.65739,3241.6,3241.5,0.09510377]
[1736524911364,10.70141087,3241.6,3241.5,3.77e-06]
[1736524911508,10.70141087,3241.6,3238.5,3.08782]
[1736524911509,3.0,3241.5,3239.7,0.7742]
[1736524911709,3.08586,3240.6,3239.7,0.7742]
[1736524911904,0.0225,3240.5,3239.7,0.7742]
[1736524912105,5.47643889,3241.8,3240.2,0.7742]
[1736524912305,5.659,3241.8,3240.4,0.7742]
[1736524912510,0.339,3241.8,3240.5,0.03085617]
[1736524912710,0.015,3241.6,3240.7,3.08566]
[1736524912961,0.0075,3241.6,3240.8,0.4161098]
[1736524913107,0.0075,3241.6,3241.0,3.08545]
[1736524913302,3.339,3242.3,3240.8,0.03767886]
[1736524913303,0.0225,3241.7,3240.8,0.03767886]
[1736524913557,0.0075,3241.6,3241.1,0.03740085]
[1736524913763,0.0075,3241.6,3240.6,0.7669]
[1736524914060,0.0075,3241.2,3240.7,0.03507055]
[1736524914461,3.08405,3242.5,3241.3,3.08509]
[1736524914768,0.339,3243.2,3241.5,0.7717]
[1736524914906,3.08376,3242.8,3241.6,0.03084547]
[1736524915105,3.08359,3243.0,3241.7,0.769]
[1736524915406,0.339,3243.6,3241.7,0.769]
[1736524915407,3.08376,3242.8,3241.8,0.04010374]
[1736524915610,0.0225,3242.5,3241.8,0.04010374]
[1736524916425,3.69625352,3243.3,3241.8,0.07095029]
[1736524916727,3.0,3243.2,3241.9,3.0846]
[1736524916925,0.5725,3243.1,3241.9,3.47304466]
[1736524917128,3.0075,3242.7,3242.0,0.03971145]
[1736524917350,0.0075,3242.8,3242.0,0.03971145]
[1736524917656,0.015,3242.6,3241.7,3.85378]
[1736524917821,0.015,3242.6,3242.1,0.03945108]
[1736524918023,0.0075,3242.5,3241.7,0.769]
[1736524918238,0.0075,3242.5,3242.2,0.03935006]
[1736524918565,0.0075,3242.5,3241.7,0.769]
[1736524918719,0.0075,3242.5,3242.3,0.04314002]
[1736524919061,0.0075,3242.1,3241.7,0.769]
[1736524919568,3.0,3243.2,3241.9,3.0846]
[1736524919729,0.0225,3243.1,3241.7,0.769]
[1736524919916,3.0,3242.3,3241.7,0.769]
[1736524920135,0.0225,3242.2,3241.7,0.769]
[1736524920317,0.0225,3241.9,3240.4,3.08602]
[1736524920555,0.0225,3241.9,3241.8,0.0397953]
[1736524920791,0.0225,3241.4,3240.7,0.7634]
[1736524920944,0.0075,3241.4,3240.7,0.7634]
[1736524921297,3.339,3242.5,3241.1,0.7634]
[1736524921508,0.339,3242.5,3241.3,0.7778]
[1736524921648,3.08433,3242.2,3241.3,0.7778]
[1736524921848,0.015,3242.0,3241.3,0.7778]
[1736524922087,0.0075,3241.8,3241.3,0.7778]
[1736524922596,0.015,3241.7,3241.3,0.7778]
[1736524922949,5.36,3243.1,3241.3,0.7778]
[1736524923151,0.5725,3242.4,3240.9,0.7543]
[1736524923404,0.96470488,3242.5,3240.9,0.7543]
[1736524923405,3.08466,3241.9,3240.9,0.7543]
[1736524923564,0.62570488,3242.5,3241.2,3.08525]
[1736524923902,0.0075,3242.2,3241.3,3.08516]
[1736524924052,0.0075,3242.1,3241.3,3.08516]
[1736524924442,0.0075,3242.1,3241.1,0.85924947]
[1736524924443,0.0075,3242.0,3241.1,0.8284]
[1736524924611,0.0075,3241.8,3241.1,0.8284]
[1736524924813,0.0075,3241.8,3240.1,0.005]
[1736524924814,3.0225,3241.6,3240.6,0.7833]
[1736524924971,3.0225,3240.8,3240.2,0.7833]
[1736524925169,0.0225,3240.6,3240.2,0.7833]
[1736524925507,3.0225,3240.6,3240.2,0.7833]
[1736524925684,0.0225,3240.3,3240.1,0.005]
[1736524926185,0.015,3240.3,3240.1,0.005]
[1736524926389,0.0225,3240.2,3240.1,0.005]
[1736524926598,3.10872,3240.2,3240.1,0.005]
[1736524927112,3.0,3241.0,3240.1,0.005]
[1736524927113,3.0,3240.8,3240.1,0.005]
[1736524927294,3.08527,3241.2,3240.1,0.005]
[1736524927602,3.0225,3240.8,3240.2,0.86835796]
[1736524927909,3.09355,3240.4,3240.2,0.03695796]
[1736524928050,0.889,3241.1,3240.2,0.03695796]
[1736524928051,6.10863,3240.3,3240.2,0.03695796]
[1736524928492,0.0075,3240.2,3240.1,0.005]
[1736524928853,0.0225,3240.2,3240.1,0.04211193]
[1736524929087,3.10872,3240.2,3240.1,0.005]
[1736524929301,6.65872,3240.2,3240.1,0.005]
[1736524929504,6.65872,3240.2,3237.7,0.25]
[1736524929505,3.0,3240.1,3238.6,0.8241]
[1736524929712,9.17302,3239.9,3238.6,0.8241]
[1736524930002,3.08729,3239.1,3238.6,0.8241]
[1736524930205,3.08729,3239.1,3237.8,0.61168469]
[1736524930206,3.0,3239.7,3238.8,0.03287613]
[1736524930372,3.08694,3239.5,3238.3,0.7758]
[1736524930553,3.08661,3239.8,3238.3,0.7758]
[1736524930789,0.0225,3238.8,3237.8,0.61168469]
[1736524930963,6.11006,3238.8,3237.8,0.61168469]
[1736524931276,3.0075,3238.8,3237.9,0.03088166]
[1736524931514,0.339,3239.7,3238.6,0.7985]
[1736524931658,3.0865,3240.0,3238.8,3.88604]
[1736524931861,0.60834621,3240.2,3238.9,0.40855122]
[1736524932195,0.60834621,3240.2,3238.9,0.83153896]
[1736524932375,0.0075,3239.8,3239.0,3.08733]
[1736524932554,0.0075,3239.8,3238.9,0.83153896]
[1736524932754,0.339,3240.5,3239.0,0.06506539]
[1736524932755,3.08617,3240.3,3239.0,0.06506539]
[1736524933006,3.08617,3240.3,3239.1,3.08726]
[1736524933300,0.0075,3240.1,3239.2,0.7731]
[1736524933501,0.0075,3239.9,3239.2,0.7731]
[1736524933705,0.0225,3239.5,3239.3,0.03381524]
[1736524933888,3.10939,3239.5,3239.3,0.03381524]
[1736524934088,0.0075,3239.2,3238.8,0.7731]
[1736524934269,0.95346676,3240.5,3239.4,0.03480252]
[1736524934476,3.0,3240.0,3239.0,3.08734]
[1736524934807,0.0075,3239.7,3239.2,0.7706]
[1736524935361,0.339,3240.4,3239.2,0.7706]
[1736524935362,0.339,3240.4,3239.3,0.03086844]
[1736524935590,0.339,3240.4,3239.3,0.03486207]
[1736524935591,3.08654,3239.9,3239.3,0.03486207]
[1736524936212,0.0225,3240.1,3239.3,0.03486207]
[1736524936374,0.0075,3240.1,3239.3,0.06573258]
[1736524936573,0.338,3240.6,3239.4,3.89017]
[1736524936814,0.0075,3239.9,3239.4,0.8032]
[1736524936978,0.0225,3239.6,3239.5,0.03755817]
[1736524937194,0.0225,3239.1,3238.7,0.1685993]
[1736524937392,0.0225,3239.1,3238.8,0.03274937]
[1736524937577,0.0075,3239.1,3238.7,0.1685993]
[1736524937779,3.0,3239.8,3238.8,0.03274937]
[1736524938129,0.0225,3239.7,3238.9,0.7722]
[1736524938271,3.0946,3239.3,3238.9,0.7722]
[1736524938477,3.0,3239.4,3239.0,0.0325903]
[1736524938678,0.0225,3239.3,3239.0,0.0325903]
[1736524938928,3.08634,3240.1,3239.0,3.15081451]
[1736524939094,0.63723018,3240.5,3238.9,0.7722]
[1736524939275,0.63723018,3240.5,3239.1,0.03256729]
[1736524939276,3.0865,3240.0,3239.1,0.03256729]
[1736524939474,3.08646,3240.0,3238.9,3.85957]
[1736524939697,3.0225,3239.9,3239.2,0.03248777]
[1736524939915,0.0225,3239.9,3239.1,3.08727]
[1736524940182,0.338,3240.6,3239.4,0.7544]
[1736524940183,3.42388,3240.6,3239.4,0.7544]
[1736524940498,3.42388,3240.6,3239.5,0.7544]
[1736524940499,0.338,3240.6,3239.5,0.7544]
[1736524940679,0.015,3240.5,3239.6,3.08679]
[1736524940876,0.015,3240.5,3239.8,3.08659]
[1736524941081,3.08549,3241.0,3240.0,3.08641]
[1736524941337,4.04402087,3241.7,3240.0,3.08641]
[1736524941338,3.72244241,3241.7,3240.6,3.08582]
[1736524941480,3.72244241,3241.7,3240.1,0.03086083]
[1736524941481,0.62631241,3241.7,3240.7,0.03085641]
[1736524941825,0.338,3242.1,3240.2,0.03085346]
[1736524942010,0.0075,3241.5,3240.5,3.08594]
[1736524942182,0.0075,3241.5,3240.3,0.03976776]
[1736524942379,0.0113,3242.2,3241.1,3.08536]
[1736524942578,3.08406,3242.5,3241.2,0.07327199]
[1736524942808,3.08406,3242.5,3241.4,3.08499]
[1736524943011,0.0075,3242.3,3241.3,0.04231046]
[1736524943211,3.09176,3242.3,3241.3,3.08516]
[1736524943429,0.94996276,3243.0,3241.4,0.04219928]
[1736524943628,3.08408,3242.5,3241.5,3.0849]
[1736524943839,0.0075,3242.2,3241.5,0.04174373]
[1736524944101,4.04402087,3243.7,3241.6,0.8001]
[1736524944416,3.08337,3243.3,3242.3,0.7808]
[1736524944621,0.15076033,3243.8,3242.3,0.81163897]
[1736524944955,0.15076033,3243.8,3242.4,0.04074349]
[1736524944956,0.015,3243.1,3242.4,0.04074349]
[1736524945253,0.015,3243.1,3242.3,0.7808]
[1736524945468,3.08299,3243.6,3242.4,0.41735094]
[1736524945754,0.15205295,3244.1,3242.5,0.7751]
[1736524945899,0.0113,3244.5,3242.3,4.04402087]
[1736524946106,3.08158,3245.1,3242.3,4.04402087]
[1736524946107,3.08166,3245.0,3243.6,3.08298]
[1736524946307,0.0113,3245.1,3243.7,3.11371654]
[1736524946555,3.08194,3244.8,3243.4,0.7751]
[1736524946852,0.0075,3244.7,3243.7,3.08287]
[1736524947016,0.62851491,3245.4,3244.2,3.08241]
[1736524947233,0.0113,3246.0,3244.4,0.8325]
[1736524947449,3.0808,3245.9,3244.4,0.8325]
[1736524947772,0.015,3244.7,3243.5,0.8009]
[1736524947918,3.0,3244.9,3243.5,0.8009]
[1736524948117,3.08167,3245.0,3243.3,0.63284098]
[1736524948348,0.338,3245.4,3244.2,3.0824]
[1736524948550,3.09208,3246.0,3244.0,0.7759]
[1736524948551,3.08099,3245.8,3244.0,0.7759]
[1736524948765,3.08086,3245.9,3244.5,3.0821]
[1736524948966,0.015,3245.8,3244.7,3.08187]
[1736524949169,0.015,3245.8,3244.8,0.03081294]
[1736524949466,0.015,3245.8,3244.6,0.7759]
[1736524949669,0.015,3245.6,3244.6,0.7759]
[1736524949875,0.55,3245.0,3244.6,0.7759]
[1736524950238,3.08076,3246.0,3244.6,0.7759]
[1736524950441,3.08064,3246.1,3244.7,0.03081518]
[1736524950627,3.41822,3246.6,3244.6,0.7759]
[1736524950822,3.08052,3246.3,3244.7,0.03081418]
[1736524951070,0.32135958,3247.7,3245.1,0.76]
[1736524951277,0.32135958,3247.7,3245.9,4.04402087]
[1736524951577,0.0113,3248.7,3246.6,0.793]
[1736524951744,0.0113,3248.7,3246.7,0.03079337]
[1736524952144,0.0113,3248.7,3247.0,0.7956]
[1736524952342,3.07861,3248.3,3247.1,0.03079203]
[1736524952561,3.07824,3248.6,3247.1,0.03079203]
[1736524952777,0.0113,3248.7,3247.0,0.7956]
[1736524952778,0.015,3247.9,3247.0,0.7956]
[1736524952982,0.0075,3247.9,3247.1,0.03079309]
[1736524953138,3.07838,3248.5,3247.0,0.7956]
[1736524953331,3.07838,3248.5,3247.1,3.07965]
[1736524953530,3.07813,3248.8,3247.2,0.84108909]
[1736524953878,0.338,3249.2,3247.9,3.07887]
[1736524954182,3.0777,3249.2,3248.0,0.8103]
[1736524954479,3.0,3249.3,3248.0,0.8103]
[1736524954776,0.0113,3249.6,3248.0,0.8103]
[1736524954942,3.07743,3249.5,3248.1,0.03078292]
[1736524955143,3.07697,3250.0,3248.1,0.03078292]
[1736524955359,0.0113,3250.2,3248.3,0.7811]
[1736524955528,3.0,3249.3,3248.3,0.7811]
[1736524955729,3.07788,3249.0,3248.3,0.7811]
[1736524955934,0.61742986,3249.6,3248.3,0.7811]
[1736524956134,0.0075,3249.2,3248.3,0.7811]
[1736524956331,3.07769,3249.2,3248.3,0.7811]
[1736524956536,3.07721,3249.7,3248.3,0.7811]
[1736524956782,0.50626728,3250.2,3248.3,0.7811]
[1736524956783,3.07758,3249.4,3248.3,0.7811]
[1736524956936,0.0075,3249.3,3248.3,0.7811]
[1736524957134,3.0075,3249.3,3248.3,0.7811]
[1736524957350,0.50626728,3250.2,3248.4,0.03077818]
[1736524957552,3.41474,3250.2,3248.5,0.7811]
[1736524957774,3.08763,3250.7,3248.6,0.03077402]
[1736524957775,0.015,3250.1,3248.6,0.03077402]
[1736524958083,3.07656,3250.4,3249.0,3.85895]
[1736524958429,0.337,3251.1,3249.3,0.7811]
[1736524958430,3.07635,3250.7,3249.3,0.7811]
[1736524958581,3.07635,3250.7,3249.4,0.03076567]
[1736524958792,3.07637,3250.6,3249.3,0.7811]
[1736524959342,0.0075,3250.9,3249.5,0.7811]
[1736524959535,0.0075,3250.6,3249.7,0.7811]
[1736524959796,0.15348798,3251.5,3249.9,0.7997]
[1736524959950,0.15348798,3251.5,3250.4,0.7997]
[1736524960157,0.1685993,3251.9,3250.4,0.7997]
[1736524960158,0.1685993,3251.9,3250.5,0.03075753]
[1736524960438,3.0,3251.1,3249.9,0.7997]
[1736524960693,7.04402087,3250.7,3248.4,0.7997]
[1736524960989,0.0075,3249.4,3248.4,0.7997]
[1736524961342,0.0075,3249.4,3248.4,1.40822514]
[1736524961540,0.55,3249.4,3248.4,1.40822514]
[1736524961770,0.0075,3249.5,3248.4,1.40822514]
[1736524961974,3.0,3249.9,3248.5,0.7997]
[1736524962209,3.0,3249.7,3248.5,0.7997]
[1736524962374,0.55,3249.6,3248.5,0.7997]
[1736524962572,3.07804,3248.9,3248.5,0.7997]
[1736524962756,0.0075,3248.8,3248.5,0.7997]
[1736524963163,0.015,3249.1,3248.5,0.7997]
[1736524963358,3.63574,3248.6,3248.5,0.7997]
[1736524963688,0.55,3248.6,3248.5,0.7997]
[1736524964597,0.5575,3248.6,3248.5,0.7997]
[1736524964887,3.07829,3248.6,3248.0,0.8065]
[1736524965096,3.0,3248.6,3248.0,0.8065]
[1736524965389,3.5575,3248.3,3248.0,0.8065]
[1736524965554,3.0,3249.0,3248.0,0.8065]
[1736524965761,3.07776,3249.2,3248.1,0.03078392]
[1736524966012,3.5725,3249.1,3248.0,0.8065]
[1736524966199,3.565,3248.4,3248.0,0.8065]
[1736524966399,3.5575,3248.2,3248.0,0.8065]
[1736524966713,3.07858,3248.3,3248.0,0.8065]
[1736524966714,6.65122,3248.1,3248.0,0.8065]
[1736524967234,3.0,3249.1,3248.0,0.8065]
[1736524967398,0.5725,3248.8,3248.0,0.8065]
[1736524967733,3.07787,3249.0,3248.1,0.03078592]
[1736524967935,3.0,3249.3,3248.1,0.03078592]
[1736524968081,0.5725,3249.0,3248.0,0.8065]
[1736524968286,0.0225,3248.4,3248.0,0.8065]
[1736524968598,0.55,3248.1,3248.0,0.8065]
[1736524968801,0.0225,3248.0,3247.3,0.7544]
[1736524969119,3.08688,3247.4,3247.3,0.7544]
[1736524969321,0.0075,3247.2,3246.2,0.7544]
[1736524969633,3.55,3247.2,3246.2,0.7544]
[1736524969860,0.0225,3247.1,3246.3,0.03079894]
[1736524970059,3.0791,3247.7,3246.4,0.7533]
[1736524970196,3.5725,3248.1,3246.5,0.03079552]
[1736524970397,0.015,3247.7,3246.6,0.7533]
[1736524970713,0.337,3248.4,3246.8,0.824]
[1736524970917,0.337,3248.4,3247.0,0.824]
[1736524971105,3.0,3248.0,3247.0,0.824]
[1736524971300,0.015,3247.9,3247.0,0.824]
[1736524971547,0.015,3247.7,3247.0,0.824]
[1736524971927,0.015,3247.7,3247.1,0.03079211]
[1736524972139,0.015,3247.7,3247.0,0.824]
[1736524972707,0.0075,3247.6,3247.0,0.824]
[1736524973154,0.565,3247.7,3247.1,0.03079383]
[1736524973155,0.015,3247.7,3247.1,0.03079383]
[1736524973356,0.015,3247.7,3247.0,0.824]
[1736524974053,0.337,3248.4,3247.6,0.7936]
[1736524974206,0.0075,3248.2,3247.6,0.7936]
[1736524974805,3.23096909,3249.0,3247.7,0.03078802]
[1736524974806,0.15304909,3249.0,3247.7,0.03078802]
[1736524975121,3.07757,3249.4,3248.0,0.7936]
[1736524975308,3.0,3249.4,3248.4,0.7936]
[1736524975503,0.0075,3249.3,3248.4,0.7936]
[1736524975708,0.0075,3249.3,3248.5,0.03078008]
[1736524975949,0.15461536,3249.9,3248.5,0.03078008]
[1736524976140,3.07713,3249.8,3248.7,3.07813]
[1736524976324,3.07713,3249.8,3248.8,0.03077569]
[1736524976625,3.07719,3249.8,3248.7,3.07813]
[1736524976949,0.0113,3250.1,3248.4,0.7936]
[1736524977152,0.3208403,3251.8,3247.9,3.70295038]
[1736524977153,3.08784,3250.5,3248.9,0.7598]
[1736524977359,4.04402087,3250.7,3248.9,0.7598]
[1736524977545,0.015,3250.1,3248.9,0.7598]
[1736524977749,4.04402087,3250.2,3248.9,0.7598]
[1736524977964,3.08814,3250.1,3248.9,0.7598]
[1736524978163,3.0,3249.8,3249.0,0.03077533]
[1736524978460,3.0113,3250.1,3249.0,0.03077533]
[1736524978461,3.64972,3249.7,3249.0,0.03077533]
[1736524978662,3.0,3250.0,3248.9,0.7598]
[1736524978865,0.5725,3249.7,3248.9,0.7598]
[1736524979030,0.5725,3249.2,3248.9,0.7598]
[1736524979230,0.015,3249.0,3248.9,0.7598]
[1736524979738,0.015,3249.0,3248.1,3.07869]
[1736524979931,0.015,3249.0,3248.2,3.9091]
[1736524980355,3.0775,3249.4,3248.2,0.8305]
[1736524980573,3.0,3249.4,3248.4,0.8305]
[1736524980870,0.0075,3249.3,3248.4,0.8305]
[1736524981128,0.0113,3250.5,3249.0,0.7778]
[1736524981399,3.07627,3250.7,3249.7,3.07719]
[1736524981597,3.07644,3250.6,3249.8,0.7505]
[1736524981753,3.0,3250.5,3249.8,0.7505]
[1736524981953,3.07639,3250.6,3249.8,0.7505]
[1736524981954,3.07616,3250.9,3249.9,0.03076737]
[1736524982154,3.07561,3251.4,3249.9,0.03076737]
[1736524982416,0.336,3251.5,3250.2,3.07672]
[1736524982417,3.0757,3251.3,3250.2,3.07672]
[1736524982561,0.336,3251.5,3250.0,0.7505]
[1736524982761,0.0075,3250.4,3250.0,0.7505]
[1736524983290,3.07594,3251.1,3250.1,3.10758675]
[1736524983600,3.07588,3251.1,3250.0,3.82733]
[1736524983760,3.0075,3250.6,3250.0,0.7505]
[1736524983961,0.0075,3250.6,3250.1,0.03076436]
[1736524984156,3.0,3251.3,3250.0,0.7505]
[1736524984362,0.015,3250.9,3250.0,0.7505]
[1736524984703,3.07598,3251.0,3249.5,3.07735]
[1736524984704,0.0225,3250.1,3249.5,0.7883]
[1736524984907,3.0,3250.5,3249.6,0.03077052]
[1736524985274,0.0113,3251.0,3249.7,3.07712]
[1736524985460,3.07626,3250.7,3249.8,0.7883]
[1736524985655,3.07559,3251.4,3249.9,3.10771587]
[1736524985656,3.0,3250.9,3249.9,3.10771587]
[1736524985901,3.0,3250.9,3250.0,3.07691]
[1736524986086,0.3473,3251.5,3250.3,0.8015]
[1736524986289,3.55,3250.9,3250.3,0.8015]
[1736524986478,0.3473,3251.5,3250.3,0.8015]
[1736524986479,3.0,3251.2,3250.4,0.03076283]
[1736524986664,0.015,3251.1,3250.3,0.8015]
[1736524986860,3.07558,3251.5,3250.5,3.07644]
[1736524987289,3.0,3251.4,3250.4,3.07654]
[1736524987494,3.0,3251.6,3250.6,3.07634]
[1736524987495,0.015,3251.6,3250.6,3.07634]
[1736524987802,0.015,3251.6,3250.8,0.8139]
[1736524987958,0.0075,3251.5,3250.8,0.8139]
[1736524988168,0.015,3251.2,3250.8,0.8139]
[1736524988386,3.0,3251.4,3250.8,0.8139]
[1736524989190,3.07531,3251.7,3250.8,0.8139]
[1736524989412,3.07531,3251.7,3250.9,0.0307586]
[1736524989712,0.5725,3251.6,3250.9,0.0307586]
[1736524990295,0.0225,3251.7,3250.8,0.8139]
[1736524990496,3.0754,3251.6,3250.9,0.7835]
[1736524990809,0.0075,3251.1,3250.9,0.7835]
[1736524990987,0.565,3251.0,3250.9,0.7835]
[1736524991165,0.565,3251.0,3249.4,0.336]
[1736524991166,0.55,3250.5,3250.0,0.7835]
[1736524991365,3.5725,3250.5,3250.0,0.7835]
[1736524991608,0.0075,3250.5,3250.0,0.7835]
[1736524991802,3.076,3251.0,3250.1,0.0307659]
[1736524992010,0.61591705,3251.8,3250.1,0.0307659]
[1736524992219,0.336,3251.7,3250.4,0.7873]
[1736524992415,3.07562,3251.4,3250.5,0.030759]
[1736524992586,0.5725,3251.3,3250.4,3.86376]
[1736524992781,3.07503,3252.0,3250.5,0.03075901]
[1736524992984,3.07532,3251.7,3250.8,0.7873]
[1736524993185,0.0075,3251.4,3250.9,0.03075646]
[1736524993389,0.5575,3251.1,3250.8,0.7873]
[1736524993569,0.55,3251.1,3250.8,0.7873]
[1736524993763,0.55,3251.2,3250.8,0.7873]
[1736524994012,0.565,3251.2,3250.8,0.7873]
[1736524994213,0.015,3251.2,3250.8,0.7873]
[1736524994416,0.1685993,3251.9,3250.9,3.07598]
[1736524994617,0.1685993,3251.9,3251.4,3.0755]
[1736524994927,0.1685993,3251.9,3251.5,0.82465038]
[1736524995075,4.04402087,3251.6,3251.5,0.7939]
[1736524995268,4.59402087,3251.6,3251.5,0.7939]
[1736524995494,4.59402087,3251.6,3250.7,3.07625]
[1736524995495,7.04402087,3251.6,3250.7,3.07625]
[1736524995696,3.55,3251.5,3250.6,0.7939]
[1736524995902,3.55,3251.0,3250.6,0.7939]
[1736524996395,0.55,3250.9,3250.6,0.7939]
[1736524996982,0.015,3251.5,3250.6,0.7939]
[1736524996983,4.04402087,3251.6,3250.7,0.03076004]
[1736524997183,0.1685993,3251.9,3250.8,0.7788]
[1736524997382,0.1685993,3251.9,3250.6,0.7664]
[1736524997598,0.1685993,3251.9,3250.8,0.7664]
[1736524997797,0.1685993,3251.9,3251.0,0.7664]
[1736524998014,4.04402087,3251.1,3251.0,0.7664]
[1736524998215,4.59402087,3251.1,3251.0,0.7664]
[1736524999073,0.55,3251.0,3250.6,0.7611]
[1736525000133,3.0,3251.5,3250.7,0.03075962]
[1736525000321,0.55,3251.4,3250.7,0.03075962]
[1736525000519,4.04402087,3251.1,3250.6,0.7611]
[1736525000728,0.55,3250.7,3250.6,0.7611]
[1736525000907,3.07656,3250.4,3250.2,0.8011]
[1736525001235,4.04402087,3250.3,3249.7,0.8011]
[1736525001646,0.55,3250.2,3249.7,0.8011]
[1736525001793,0.55,3250.2,3249.8,0.03076644]
[1736525002196,0.6150851,3251.7,3249.7,0.8011]
[1736525002431,3.07599,3251.0,3250.0,3.07684]
[1736525002634,0.55,3250.8,3250.1,0.03076163]
[1736525002937,0.55,3250.6,3250.0,3.0769]
[1736525003239,0.55,3250.6,3250.2,0.788]
[1736525003402,0.55,3250.6,3250.3,0.03076247]
[1736525003990,3.07554,3251.5,3250.3,0.03076247]
[1736525003991,4.04402087,3251.2,3250.7,3.07623]
[1736525004190,4.04402087,3251.2,3250.9,0.7735]
[1736525004435,7.13433087,3251.7,3250.9,0.7735]
[1736525004649,7.13433087,3251.7,3251.0,0.03075629]
[1736525004810,4.05902087,3251.7,3251.0,0.03075629]
[1736525005324,0.1685993,3251.9,3251.0,0.03075629]
[1736525005640,0.1685993,3251.9,3251.8,3.07521]
[1736525005844,0.1685993,3251.9,3251.8,3.91325565]
[1736525006095,0.1685993,3251.9,3251.8,4.30458122]
[1736525006216,0.1685993,3251.9,3251.8,0.8073]
[1736525006905,0.55,3251.8,3251.4,0.8251]
[1736525007631,0.1685993,3251.9,3251.4,0.8251]
[1736525007816,0.1685993,3251.9,3251.5,0.03075262]
[1736525008003,7.11927087,3251.8,3251.4,0.8251]
[1736525008204,0.565,3251.7,3251.4,0.8251]
[1736525008836,0.55,3251.5,3250.8,0.7987]
[1736525009056,0.0075,3251.5,3250.8,0.7987]
[1736525009258,6.6258,3251.2,3250.8,0.7987]
[1736525009550,3.55,3251.2,3250.8,0.7987]